bitfinex/quotes_BTCUSD_20241208
["timestamp","ask_amount","ask_price","bid_price","bid_amount"]
[1733666074483,0.87885914,100320.0,100300.0,0.00178984]
[1733666074687,0.179443,100310.0,100300.0,0.00178984]
[1733666076011,0.31890167,100310.0,100300.0,0.00178984]
[1733666076234,0.57293118,100310.0,100300.0,0.00178984]
[1733666076454,1.01353654,100310.0,100300.0,0.00178984]
[1733666076869,1.23718323,100310.0,100300.0,0.00178984]
[1733666077502,1.14772456,100310.0,100300.0,0.00178984]
[1733666077730,1.33708683,100310.0,100300.0,0.00178984]
[1733666077941,1.2475399,100310.0,100300.0,0.00178984]
[1733666078499,1.33706579,100310.0,100300.0,0.00178984]
[1733666079122,0.179515,100270.0,100260.0,0.3960068]
[1733666079296,0.179515,100270.0,100260.0,0.36231365]
[1733666079528,0.179515,100270.0,100260.0,0.36288904]
[1733666079951,0.53853,100280.0,100260.0,0.36288904]
[1733666080191,0.35902,100280.0,100270.0,0.10002951]
[1733666082287,0.35902,100280.0,100270.0,0.17732951]
[1733666082493,0.35902,100280.0,100270.0,0.0773]
[1733666082699,0.36002,100280.0,100270.0,0.0863]
[1733666083082,0.35902,100280.0,100270.0,0.17732951]
[1733666083299,0.358977,100290.0,100270.0,0.10202676]
[1733666083511,0.358945,100300.0,100290.0,0.0817]
[1733666083721,0.358945,100300.0,100290.0,0.18172951]
[1733666083943,0.538365,100310.0,100290.0,0.18172951]
[1733666084155,0.179461,100300.0,100290.0,0.22922951]
[1733666084583,0.179461,100300.0,100290.0,0.25922951]
[1733666085938,0.538365,100310.0,100290.0,0.25922951]
[1733666086151,0.538365,100310.0,100290.0,0.26022951]
[1733666086793,0.179461,100300.0,100290.0,0.26022951]
[1733666087003,0.179461,100300.0,100290.0,0.25922951]
[1733666088299,0.179461,100300.0,100290.0,0.22922951]
[1733666088737,0.179461,100300.0,100290.0,0.10002951]
[1733666089399,0.54937869,100310.0,100290.0,0.10002951]
[1733666089608,0.179461,100300.0,100290.0,0.10002951]
[1733666089835,0.179461,100300.0,100290.0,0.10102951]
[1733666092887,0.358908,100310.0,100300.0,0.0807]
[1733666093113,0.358908,100310.0,100300.0,0.18072951]
[1733666094161,0.358908,100310.0,100300.0,0.18090131]
[1733666094605,0.362908,100310.0,100300.0,0.18090131]
[1733666095887,0.362908,100310.0,100300.0,0.10020131]
[1733666096522,0.362908,100310.0,100300.0,0.10193391]
[1733666097774,0.362908,100310.0,100300.0,0.0019044]
[1733666101498,0.57360463,100310.0,100300.0,0.0019044]
[1733666103168,0.96306028,100310.0,100300.0,0.0019044]
[1733666103583,1.1471995,100310.0,100300.0,0.0019044]
[1733666104470,1.0971995,100310.0,100300.0,0.0019044]
[1733666104702,1.1471995,100310.0,100300.0,0.0019044]
[1733666104915,0.86567336,100310.0,100300.0,0.0019044]
[1733666105126,0.73153414,100310.0,100300.0,0.0019044]
[1733666105370,0.512908,100310.0,100300.0,0.0019044]
[1733666106219,0.362908,100310.0,100300.0,0.0019044]
[1733666107947,0.3637748,100310.0,100300.0,0.0019044]
[1733666108680,0.3637748,100310.0,100300.0,0.10193391]
[1733666108884,0.1843188,100310.0,100300.0,0.18453391]
[1733666109769,0.1843188,100310.0,100300.0,0.2155308]
[1733666109980,0.1843188,100310.0,100300.0,0.21453391]
[1733666110639,0.1843188,100310.0,100300.0,0.11456342]
[1733666110853,0.1843188,100310.0,100300.0,0.11556031]
[1733666111480,0.1843188,100310.0,100300.0,0.1010264]
[1733666113019,0.0048668,100310.0,100300.0,0.1010264]
[1733666113607,0.0048668,100310.0,100300.0,0.1836264]
[1733666114326,0.1843098,100310.0,100300.0,0.1836264]
[1733666115597,0.1843098,100310.0,100300.0,0.1010264]
[1733666116054,0.0048668,100310.0,100300.0,0.2066264]
[1733666116270,0.0048668,100310.0,100300.0,0.43359051]
[1733666116474,0.0048668,100310.0,100300.0,0.52273799]
[1733666118177,0.0048668,100310.0,100300.0,0.67267054]
[1733666119002,0.0048668,100310.0,100300.0,1.00146788]
[1733666119640,0.0008668,100310.0,100300.0,1.00146788]
[1733666120065,0.0008668,100310.0,100300.0,1.00246788]
[1733666120518,0.0008668,100310.0,100300.0,1.13600051]
[1733666120742,0.0008668,100310.0,100300.0,1.53674411]
[1733666121178,0.0008668,100310.0,100300.0,1.53847711]
[1733666122257,0.0008668,100310.0,100300.0,1.58847711]
[1733666124135,0.0008668,100310.0,100300.0,1.63847711]
[1733666124614,0.0008668,100310.0,100300.0,1.54939708]
[1733666125663,0.0008668,100310.0,100300.0,1.58144727]
[1733666125879,0.0008668,100310.0,100300.0,1.58044727]
[1733666126328,0.0008668,100310.0,100300.0,1.58544727]
[1733666126536,0.0008665,100320.0,100300.0,1.58544727]
[1733666126746,0.0008665,100320.0,100310.0,0.80027823]
[1733666126982,0.0008665,100320.0,100310.0,1.3939056]
[1733666127192,0.0008665,100320.0,100310.0,1.29123172]
[1733666127619,0.0008665,100320.0,100310.0,1.55847183]
[1733666128033,0.0008665,100320.0,100310.0,1.33577174]
[1733666128275,0.0008665,100320.0,100310.0,1.29067512]
[1733666128487,0.0008665,100320.0,100310.0,1.56391523]
[1733666128911,0.0008665,100320.0,100310.0,1.34088997]
[1733666129124,0.0008665,100320.0,100310.0,1.44568997]
[1733666129597,0.0018665,100320.0,100310.0,1.45468997]
[1733666129803,0.0008665,100320.0,100310.0,2.90088997]
[1733666130002,0.0018665,100320.0,100310.0,2.90988997]
[1733666130449,0.0018665,100320.0,100310.0,2.74232819]
[1733666130654,0.0018665,100320.0,100310.0,2.96430238]
[1733666130874,0.0018665,100320.0,100310.0,3.25183567]
[1733666131080,0.0008665,100320.0,100310.0,3.24283567]
[1733666131490,0.43501234,100350.0,100330.0,0.173]
[1733666131717,0.43501234,100350.0,100340.0,0.124026]
[1733666132341,0.25563234,100350.0,100340.0,0.124026]
[1733666132752,0.07626034,100350.0,100340.0,0.124026]
[1733666132937,0.25574667,100350.0,100340.0,0.124026]
[1733666133190,0.25574667,100350.0,100340.0,0.129026]
[1733666134543,0.00011433,100350.0,100340.0,0.434916]
[1733666134909,0.00011433,100350.0,100340.0,0.43391951]
[1733666135548,0.00011433,100350.0,100340.0,0.58391951]
[1733666136355,0.00011433,100350.0,100340.0,0.8194311]
[1733666136583,0.00011433,100350.0,100340.0,0.8499145]
[1733666136787,0.00011433,100350.0,100340.0,1.48758115]
[1733666136941,0.00011433,100350.0,100340.0,1.31020879]
[1733666137143,0.00011433,100350.0,100340.0,0.8499145]
[1733666137380,0.00011433,100350.0,100340.0,0.8449145]
[1733666137587,0.00011433,100350.0,100340.0,1.70238218]
[1733666137787,0.00111433,100350.0,100340.0,1.71138218]
[1733666137988,0.00111433,100350.0,100340.0,1.71738218]
[1733666138632,0.00111433,100350.0,100340.0,1.71138218]
[1733666139167,0.00111433,100350.0,100340.0,1.48940799]
[1733666139382,0.17888698,100360.0,100350.0,0.273]
[1733666139584,0.17888698,100360.0,100350.0,0.60191584]
[1733666139812,0.17888698,100360.0,100350.0,1.01090476]
[1733666140017,0.17888698,100360.0,100350.0,1.36816496]
[1733666140216,0.17888698,100360.0,100350.0,1.08588487]
[1733666140652,0.0008661,100370.0,100360.0,0.402354]
[1733666140858,0.0008661,100370.0,100360.0,0.50238351]
[1733666142446,0.0008661,100370.0,100360.0,0.50638351]
[1733666142841,0.0018661,100370.0,100360.0,0.56438351]
[1733666143278,0.0018661,100370.0,100360.0,0.5950951]
[1733666144037,0.0018661,100370.0,100360.0,0.78918351]
[1733666144238,0.0008653,100400.0,100390.0,0.023]
[1733666144462,0.0008653,100400.0,100390.0,0.45332538]
[1733666144664,0.0008653,100400.0,100390.0,0.45232951]
[1733666145538,0.00103718,100400.0,100390.0,0.45432951]
[1733666146546,0.00103718,100400.0,100390.0,0.45832951]
[1733666147724,0.00103718,100400.0,100390.0,0.50832951]
[1733666148674,0.00103718,100400.0,100390.0,0.55832951]
[1733666148881,0.00103718,100400.0,100390.0,0.27702951]
[1733666149085,0.00103718,100400.0,100390.0,0.45232951]
[1733666149286,0.00103718,100400.0,100390.0,0.46032951]
[1733666150027,0.00103718,100400.0,100390.0,0.51432951]
[1733666150697,0.00103718,100400.0,100390.0,0.61912951]
[1733666150905,0.00103718,100400.0,100390.0,0.74732951]
[1733666151352,0.00103718,100400.0,100390.0,0.79412951]
[1733666151507,0.0008666,100420.0,100410.0,0.252265]
[1733666151719,0.0008666,100420.0,100410.0,0.5634895]
[1733666151720,0.00144111,100420.0,100410.0,0.5634895]
[1733666152740,0.00244111,100420.0,100410.0,0.5634895]
[1733666153778,0.00144111,100420.0,100410.0,0.5634895]
[1733666153978,0.00144111,100420.0,100410.0,0.5664895]
[1733666154321,0.00144111,100420.0,100410.0,0.5704895]
[1733666154536,0.00144111,100420.0,100410.0,0.6204895]
[1733666154723,0.00144111,100420.0,100410.0,0.7252895]
[1733666154945,0.00144111,100420.0,100410.0,0.8119305]
[1733666155357,0.00144111,100420.0,100410.0,0.8089305]
[1733666155558,0.00144111,100420.0,100410.0,0.8149305]
[1733666155770,0.00144111,100420.0,100410.0,0.7101305]
[1733666157029,0.07674111,100420.0,100410.0,0.49011058]
[1733666157246,0.07674111,100420.0,100410.0,0.45026958]
[1733666158175,0.07674111,100420.0,100410.0,0.43929451]
[1733666158381,0.07674111,100420.0,100410.0,0.46229451]
[1733666158759,0.07674111,100420.0,100410.0,0.28302951]
[1733666158961,0.25598811,100420.0,100410.0,0.28302951]
[1733666159540,0.25598811,100420.0,100410.0,0.27902951]
[1733666160139,0.25598811,100420.0,100410.0,0.27302951]
[1733666160267,0.25598811,100420.0,100410.0,0.25002951]
[1733666160466,0.25598811,100420.0,100410.0,0.10002951]
[1733666160671,0.25598811,100420.0,100410.0,0.10302531]
[1733666160878,0.25598811,100420.0,100410.0,0.10602531]
[1733666161588,0.30528811,100420.0,100410.0,0.10502951]
[1733666162608,0.30528811,100420.0,100410.0,0.005]
[1733666163210,0.30528811,100420.0,100410.0,0.002]
[1733666163451,0.0823,100390.0,100380.0,0.039858]
[1733666163595,0.0823,100390.0,100380.0,0.10102556]
[1733666163596,0.261611,100390.0,100380.0,0.10102556]
[1733666163796,0.440926,100390.0,100380.0,0.10102556]
[1733666164247,0.440926,100390.0,100380.0,0.10002951]
[1733666165435,0.440926,100390.0,100380.0,0.12302951]
[1733666165646,0.179336,100370.0,100360.0,0.039863]
[1733666165842,0.179336,100370.0,100360.0,0.10002951]
[1733666165843,0.261636,100370.0,100360.0,0.10002951]
[1733666166657,0.261636,100370.0,100360.0,0.10102581]
[1733666166881,0.261636,100370.0,100360.0,0.10119769]
[1733666167315,0.261636,100370.0,100360.0,0.10793319]
[1733666167810,0.261636,100370.0,100360.0,0.00790368]
[1733666169224,0.261636,100370.0,100360.0,0.00190368]
[1733666170275,0.0823,100370.0,100360.0,0.12493319]
[1733666170726,0.261636,100370.0,100360.0,0.12592947]
[1733666170934,0.262636,100370.0,100360.0,0.12592947]
[1733666171764,0.261636,100370.0,100360.0,0.12592947]
[1733666171969,0.261636,100370.0,100360.0,0.12892947]
[1733666172620,0.0823,100370.0,100360.0,0.30828347]
[1733666172830,0.0823,100370.0,100360.0,0.30728719]
[1733666173249,0.0823,100370.0,100360.0,0.30928719]
[1733666175435,0.261636,100370.0,100360.0,0.12993319]
[1733666175637,0.261636,100370.0,100360.0,0.13092945]
[1733666176282,0.261636,100370.0,100360.0,0.00690368]
[1733666177405,0.309136,100370.0,100360.0,0.00690368]
[1733666177636,0.309136,100370.0,100360.0,0.00490368]
[1733666177856,0.309136,100370.0,100360.0,0.00190368]
[1733666178297,0.310136,100370.0,100360.0,0.00190368]
[1733666180739,0.310136,100370.0,100360.0,0.10193319]
[1733666181515,0.262636,100370.0,100360.0,0.10193319]
[1733666181716,0.261636,100370.0,100360.0,0.10193319]
[1733666182092,0.262636,100370.0,100360.0,0.10193319]
[1733666182790,0.001,100370.0,100360.0,0.3052835]
[1733666182988,0.001,100370.0,100360.0,0.30428719]
[1733666183181,0.001,100370.0,100360.0,0.12493319]
[1733666183381,0.180336,100370.0,100360.0,0.12592938]
[1733666183686,0.001,100370.0,100360.0,0.30528338]
[1733666184002,0.001,100370.0,100360.0,0.30428719]
[1733666184390,0.001,100370.0,100360.0,0.12493319]
[1733666184391,0.180336,100370.0,100360.0,0.12493319]
[1733666184604,0.258036,100370.0,100360.0,0.12592947]
[1733666185079,0.259036,100370.0,100360.0,0.12592947]
[1733666185281,0.259036,100370.0,100360.0,0.30528347]
[1733666185497,0.258036,100370.0,100360.0,0.12693319]
[1733666185717,0.258036,100370.0,100360.0,0.13092947]
[1733666186143,0.0787,100370.0,100360.0,0.31028347]
[1733666186380,0.0787,100370.0,100360.0,0.30928719]
[1733666187957,0.258036,100370.0,100360.0,0.30928719]
[1733666188179,0.258036,100370.0,100360.0,0.12993319]
[1733666188406,0.258036,100370.0,100360.0,0.13092947]
[1733666188842,0.258036,100370.0,100360.0,0.31028347]
[1733666189089,0.258036,100370.0,100360.0,0.30928719]
[1733666190668,0.0787,100370.0,100360.0,0.30928719]
[1733666190891,0.258036,100370.0,100360.0,0.30928719]
[1733666191337,0.258036,100370.0,100360.0,0.12993319]
[1733666191550,0.258036,100370.0,100360.0,0.13092947]
[1733666191993,0.0787,100370.0,100360.0,0.31028347]
[1733666192217,0.0787,100370.0,100360.0,0.30928719]
[1733666193104,0.0787,100380.0,100370.0,0.202331]
[1733666193330,0.0787,100380.0,100370.0,0.30236551]
[1733666194473,0.258018,100380.0,100370.0,0.12302951]
[1733666194691,0.258018,100380.0,100370.0,0.12402567]
[1733666194906,0.0787,100380.0,100370.0,0.30336167]
[1733666195120,0.0787,100380.0,100370.0,0.30236551]
[1733666195532,0.0797,100380.0,100370.0,0.30236551]
[1733666197046,0.259018,100380.0,100370.0,0.12302951]
[1733666197503,0.259018,100380.0,100370.0,0.12402572]
[1733666200390,0.259018,100380.0,100370.0,0.12302951]
[1733666200879,0.259018,100380.0,100370.0,0.12402572]
[1733666201892,0.259018,100380.0,100370.0,0.12302951]
[1733666202643,0.259018,100380.0,100370.0,0.12402572]
[1733666203625,0.259018,100380.0,100370.0,0.10102572]
[1733666203849,0.259018,100380.0,100370.0,0.10002951]
[1733666205682,0.260036,100370.0,100360.0,0.02490368]
[1733666206019,0.307036,100370.0,100360.0,0.10193319]
[1733666206221,0.307036,100370.0,100360.0,0.00190368]
[1733666206423,0.3916374,100370.0,100360.0,0.00190368]
[1733666206841,0.307036,100370.0,100360.0,0.00190368]
[1733666207049,0.307036,100370.0,100360.0,0.00390368]
[1733666207469,0.307036,100370.0,100360.0,0.00190368]
[1733666208108,0.457036,100370.0,100360.0,0.00190368]
[1733666208310,0.457036,100370.0,100360.0,0.00490368]
[1733666208522,0.307036,100370.0,100360.0,0.00490368]
[1733666208944,0.307036,100370.0,100360.0,0.00190368]
[1733666209381,0.308036,100370.0,100360.0,0.00290368]
[1733666211622,0.261036,100370.0,100360.0,0.10293319]
[1733666211835,0.001,100370.0,100360.0,0.30628349]
[1733666212062,0.001,100370.0,100360.0,0.85570159]
[1733666212265,0.255018,100380.0,100360.0,1.48222795]
[1733666212470,0.255018,100380.0,100370.0,0.12402572]
[1733666212471,0.0757,100380.0,100370.0,0.12402572]
[1733666212674,1.0646966,100390.0,100370.0,0.39145003]
[1733666213223,0.4024656,100390.0,100380.0,0.30234751]
[1733666214015,0.0008659,100400.0,100390.0,0.2023]
[1733666214216,0.0008659,100400.0,100390.0,0.30232951]
[1733666215654,0.0028659,100400.0,100390.0,0.30232951]
[1733666215851,0.0008659,100400.0,100390.0,0.63052951]
[1733666216689,0.0018659,100400.0,100390.0,0.63052951]
[1733666217909,0.0018659,100400.0,100390.0,0.68052951]
[1733666218377,0.0018659,100400.0,100390.0,0.7132411]
[1733666218519,0.09028392,100420.0,100410.0,0.252265]
[1733666218700,0.09028392,100420.0,100410.0,0.35229451]
[1733666218898,0.0008666,100420.0,100410.0,0.35229451]
[1733666219340,0.0008666,100420.0,100410.0,0.58079451]
[1733666219554,0.0008666,100420.0,100410.0,0.62669451]
[1733666219749,0.00144111,100420.0,100410.0,0.62669451]
[1733666220882,0.00144111,100420.0,100410.0,0.6594061]
[1733666221086,0.00144111,100420.0,100410.0,0.7398895]
[1733666221319,0.31383399,100430.0,100420.0,0.42811159]
[1733666221517,0.31383399,100430.0,100420.0,0.7378715]
[1733666221717,0.0008662,100430.0,100420.0,0.7378715]
[1733666222116,0.0008662,100460.0,100450.0,0.99261224]
[1733666222325,0.0008662,100460.0,100450.0,1.09264175]
[1733666222540,0.0008662,100460.0,100450.0,0.54812251]
[1733666223369,0.00103851,100460.0,100450.0,0.54812251]
[1733666223515,0.00103851,100460.0,100450.0,0.55512251]
[1733666224033,0.00103851,100460.0,100450.0,0.71810591]
[1733666224240,0.00103851,100460.0,100450.0,0.7488175]
[1733666225896,0.00103851,100460.0,100450.0,0.60912251]
[1733666226836,0.00103851,100460.0,100450.0,0.66122347]
[1733666227669,0.00103851,100460.0,100450.0,0.77021518]
[1733666229879,0.0058656,100470.0,100460.0,0.1]
[1733666230086,0.0058656,100470.0,100460.0,0.3740245]
[1733666230324,0.0058656,100470.0,100460.0,0.55220451]
[1733666230735,0.0058656,100470.0,100460.0,0.58468229]
[1733666231679,0.0058656,100470.0,100460.0,0.58768229]
[1733666232502,0.0058656,100470.0,100460.0,0.58968229]
[1733666237567,0.0058656,100470.0,100460.0,0.57468229]
[1733666238017,0.0008656,100470.0,100460.0,0.57468229]
[1733666240678,0.0008656,100470.0,100460.0,0.54220451]
[1733666243737,0.00595875,100470.0,100460.0,0.54220451]
[1733666245593,0.00595875,100470.0,100460.0,0.50720451]
[1733666245817,0.00595875,100470.0,100460.0,0.54220451]
[1733666246298,0.0008656,100470.0,100460.0,0.54220451]
[1733666246614,0.00595875,100470.0,100460.0,0.54393491]
[1733666247387,0.01368545,100470.0,100460.0,0.54393491]
[1733666248349,0.0085923,100470.0,100460.0,0.54393491]
[1733666248562,0.01368545,100470.0,100460.0,0.54393491]
[1733666249908,0.0085923,100470.0,100460.0,0.54393491]
[1733666250086,0.01368545,100470.0,100460.0,0.54393491]
[1733666250335,0.0008656,100470.0,100460.0,0.54393491]
[1733666250574,0.08655875,100470.0,100460.0,0.25675991]
[1733666250807,0.08605875,100470.0,100460.0,0.43593491]
[1733666251008,0.08605875,100470.0,100460.0,0.25675991]
[1733666251009,0.26521575,100470.0,100460.0,0.25675991]
[1733666251421,0.08605875,100470.0,100460.0,0.43593491]
[1733666251856,0.08605875,100470.0,100460.0,0.45893491]
[1733666252245,0.08605875,100470.0,100460.0,0.44893491]
[1733666252733,0.2601226,100470.0,100460.0,0.44893491]
[1733666252989,0.00546201,100470.0,100460.0,0.53393491]
[1733666253188,0.00546201,100470.0,100460.0,0.56412207]
[1733666253405,0.0003656,100470.0,100460.0,0.53393491]
[1733666253960,0.0003656,100470.0,100460.0,0.56412207]
[1733666254168,0.0003656,100470.0,100460.0,0.56112207]
[1733666254381,0.0003656,100470.0,100460.0,0.56612207]
[1733666254943,0.0003656,100470.0,100460.0,0.57012207]
[1733666255358,0.0003656,100470.0,100460.0,0.56612207]
[1733666255508,0.0003656,100470.0,100460.0,0.56712207]
[1733666255929,0.0003656,100470.0,100460.0,0.56012207]
[1733666256445,0.0003656,100470.0,100460.0,0.52993491]
[1733666256608,0.0003656,100470.0,100460.0,0.53893491]
[1733666257297,0.0003656,100470.0,100460.0,0.52993491]
[1733666257794,0.0003656,100470.0,100460.0,0.53193491]
[1733666258014,0.00533409,100470.0,100460.0,0.53193491]
[1733666258437,0.0003656,100470.0,100460.0,0.56212207]
[1733666258613,0.00534785,100470.0,100460.0,0.56212207]
[1733666259359,0.0003656,100470.0,100460.0,0.56212207]
[1733666259768,0.00534785,100470.0,100460.0,0.56212207]
[1733666261735,0.00534785,100470.0,100460.0,0.53193491]
[1733666261901,0.00534785,100470.0,100460.0,0.56212207]
[1733666262102,0.0003656,100470.0,100460.0,0.56212207]
[1733666263399,7e-07,100480.0,100470.0,0.336057]
[1733666263603,7e-07,100480.0,100470.0,2.20858814]
[1733666264218,0.0009157,100490.0,100480.0,0.085]
[1733666264440,0.0008658,100510.0,100500.0,0.643604]
[1733666264699,0.0008658,100510.0,100500.0,2.19583351]
[1733666264932,0.00103805,100510.0,100500.0,2.19583351]
[1733666265194,0.00103805,100510.0,100500.0,2.2645785]
[1733666265423,0.0008658,100530.0,100520.0,0.3398]
[1733666265718,0.10962184,100560.0,100550.0,0.258]
[1733666265994,0.10962184,100560.0,100550.0,4.00192951]
[1733666266227,0.11019613,100560.0,100550.0,3.61842951]
[1733666266461,0.11019613,100560.0,100550.0,1.77142951]
[1733666266986,0.11532745,100560.0,100550.0,1.77142951]
[1733666267445,0.09132745,100560.0,100550.0,1.82446193]
[1733666267688,0.09132745,100560.0,100550.0,2.00347693]
[1733666267928,0.09132745,100560.0,100550.0,2.01247693]
[1733666268393,0.0008654,100570.0,100560.0,0.05]
[1733666268632,0.00103754,100570.0,100560.0,0.63153372]
[1733666268862,0.00103754,100570.0,100560.0,0.6305396]
[1733666269095,0.00103754,100570.0,100560.0,0.4515426]
[1733666269340,0.00103754,100570.0,100560.0,0.4745426]
[1733666269580,0.00103754,100570.0,100560.0,0.39037543]
[1733666269802,0.00103754,100570.0,100560.0,0.56937243]
[1733666270041,0.00103754,100570.0,100560.0,0.39037543]
[1733666270265,0.00103754,100570.0,100560.0,0.56937243]
[1733666270673,0.00103754,100570.0,100560.0,0.57637243]
[1733666270873,0.00103754,100570.0,100560.0,0.61137243]
[1733666271719,0.00103754,100570.0,100560.0,0.39737543]
[1733666271934,0.18001654,100570.0,100560.0,0.32437543]
[1733666273027,0.00103754,100570.0,100560.0,0.34737543]
[1733666273230,0.18001654,100570.0,100560.0,0.34737543]
[1733666273660,0.18001654,100570.0,100560.0,0.28402951]
[1733666274286,0.26301654,100570.0,100560.0,0.28402951]
[1733666276866,0.08403754,100570.0,100560.0,0.28402951]
[1733666277077,0.00103754,100570.0,100560.0,0.33402951]
[1733666279091,0.00103754,100570.0,100560.0,0.28402951]
[1733666279295,0.18001654,100570.0,100560.0,0.28402951]
[1733666279495,0.19501654,100570.0,100560.0,0.11102951]
[1733666279865,0.27761654,100570.0,100560.0,0.11102951]
[1733666280765,0.27761654,100570.0,100560.0,0.10702951]
[1733666280938,0.27761654,100570.0,100560.0,0.13002951]
[1733666281163,0.31131654,100570.0,100560.0,0.007]
[1733666281371,0.276615,100550.0,100540.0,0.50562082]
[1733666281573,0.276615,100550.0,100540.0,0.60565033]
[1733666282456,0.261615,100550.0,100540.0,0.55565033]
[1733666282679,0.310315,100550.0,100540.0,0.10002951]
[1733666283247,0.179078,100520.0,100510.0,0.00099462]
[1733666283465,0.179078,100520.0,100510.0,0.10102413]
[1733666284503,0.358124,100530.0,100520.0,0.023]
[1733666284504,0.179059,100530.0,100520.0,0.023]
[1733666284709,0.179059,100530.0,100520.0,0.27302951]
[1733666285686,0.180059,100530.0,100520.0,0.28002951]
[1733666286104,0.179059,100530.0,100520.0,0.27302951]
[1733666286497,0.181059,100530.0,100520.0,0.27302951]
[1733666286695,0.002,100530.0,100520.0,0.27302951]
[1733666286894,0.181051,100530.0,100520.0,0.27302951]
[1733666287166,0.002,100530.0,100520.0,0.27302951]
[1733666287544,0.181051,100530.0,100520.0,0.27302951]
[1733666288295,0.002,100530.0,100520.0,0.27302951]
[1733666288745,0.181051,100530.0,100520.0,0.27302951]
[1733666288896,0.002,100530.0,100520.0,0.27302951]
[1733666289096,0.181051,100530.0,100520.0,0.27302951]
[1733666289937,0.002,100530.0,100520.0,0.27302951]
[1733666290154,0.002,100530.0,100520.0,0.45209751]
[1733666290708,0.181051,100530.0,100520.0,0.45209751]
[1733666290928,0.181051,100530.0,100520.0,0.27302951]
[1733666292473,0.181051,100530.0,100520.0,0.27475831]
[1733666292880,0.002,100530.0,100520.0,0.27475831]
[1733666293089,0.002,100530.0,100520.0,0.45382631]
[1733666293926,0.181051,100530.0,100520.0,0.45382631]
[1733666294551,0.002,100530.0,100520.0,0.45382631]
[1733666294972,0.002,100530.0,100520.0,2.02482226]
[1733666295201,0.00462412,100560.0,100550.0,0.173]
[1733666295413,0.178997,100560.0,100550.0,0.27402383]
[1733666295634,0.178997,100560.0,100550.0,0.27302951]
[1733666295858,0.5033514,100570.0,100550.0,0.45204451]
[1733666296066,0.5033514,100570.0,100560.0,0.12402382]
[1733666296553,0.50352354,100570.0,100560.0,0.12402382]
[1733666297364,0.50552354,100570.0,100560.0,0.12402382]
[1733666297780,0.35804,100550.0,100540.0,0.15]
[1733666297987,0.35804,100550.0,100540.0,0.25102399]
[1733666298198,0.35804,100550.0,100540.0,0.25002951]
[1733666298398,0.45264,100550.0,100540.0,0.10002951]
[1733666299062,0.45264,100550.0,100540.0,0.11102951]
[1733666300321,0.45264,100550.0,100540.0,0.10002951]
[1733666300756,0.45364,100550.0,100540.0,0.10002951]
[1733666301400,0.194051,100530.0,100520.0,0.0017288]
[1733666301609,0.273651,100530.0,100520.0,0.10175831]
[1733666302775,0.273651,100530.0,100520.0,0.1023326]
[1733666303383,0.274651,100530.0,100520.0,0.1093326]
[1733666304200,0.274651,100530.0,100520.0,0.1133326]
[1733666304378,0.273651,100530.0,100520.0,0.1063326]
[1733666304586,0.273651,100530.0,100520.0,0.1023326]
[1733666304991,0.273651,100530.0,100520.0,0.1073326]
[1733666307016,0.273651,100530.0,100520.0,0.1053326]
[1733666307379,0.273651,100530.0,100520.0,0.1093326]
[1733666307578,0.273651,100530.0,100520.0,0.1063326]
[1733666308066,0.015,100540.0,100530.0,0.023]
[1733666308364,0.194033,100540.0,100530.0,0.10002951]
[1733666308571,0.179033,100540.0,100530.0,0.10002951]
[1733666309362,0.258633,100540.0,100530.0,0.10002951]
[1733666310054,0.258633,100540.0,100530.0,0.10202951]
[1733666310728,0.258633,100540.0,100530.0,0.002]
[1733666311257,0.258633,100540.0,100530.0,0.004]
[1733666313479,0.179051,100530.0,100520.0,0.00230309]
[1733666313675,0.258651,100530.0,100520.0,0.00230309]
[1733666314794,0.258651,100530.0,100520.0,0.01330309]
[1733666315026,0.308651,100530.0,100520.0,0.01330309]
[1733666315203,0.4524782,100530.0,100520.0,0.01330309]
[1733666315411,0.6024782,100530.0,100520.0,0.01330309]
[1733666316063,0.507951,100530.0,100520.0,0.01330309]
[1733666316262,0.55798051,100530.0,100520.0,0.01330309]
[1733666316705,0.1,100520.0,100500.0,0.0017288]
[1733666316865,0.259286,100510.0,100500.0,0.0017288]
[1733666318936,0.261286,100510.0,100500.0,0.0017288]
[1733666319147,0.276286,100510.0,100500.0,0.10175831]
[1733666319379,0.261286,100510.0,100500.0,0.10175831]
[1733666324351,0.2717635,100510.0,100500.0,0.10175831]
[1733666325396,0.2717635,100510.0,100500.0,0.0017288]
[1733666327946,0.2717635,100510.0,100500.0,0.0020288]
[1733666328456,0.66820835,100510.0,100500.0,8e-07]
[1733666329173,0.61817884,100510.0,100500.0,8e-07]
[1733666330855,0.5183635,100510.0,100500.0,8e-07]
[1733666331336,0.53841129,100510.0,100500.0,8e-07]
[1733666332614,0.4683635,100510.0,100500.0,8e-07]
[1733666332811,0.3683635,100510.0,100500.0,8e-07]
[1733666334127,0.3183635,100510.0,100500.0,8e-07]
[1733666334333,0.3683635,100510.0,100500.0,8e-07]
[1733666334540,0.3183635,100510.0,100500.0,8e-07]
[1733666339489,0.3183635,100510.0,100500.0,0.0017326]
[1733666344694,0.3683635,100510.0,100500.0,0.0017326]
[1733666348682,0.5683635,100510.0,100500.0,0.0017326]
[1733666352332,0.5692296,100510.0,100500.0,0.0017326]
[1733666352968,0.66904494,100510.0,100500.0,0.0017326]
[1733666354159,0.66907445,100510.0,100500.0,6e-07]
[1733666354378,0.7582471,100510.0,100500.0,6e-07]
[1733666354584,0.89200608,100510.0,100500.0,6e-07]
[1733666355176,0.79219074,100510.0,100500.0,6e-07]
[1733666355375,0.97053605,100510.0,100500.0,6e-07]
[1733666356443,1.19346768,100510.0,100500.0,6e-07]
[1733666356704,1.10429503,100510.0,100500.0,6e-07]
[1733666357561,0.79251483,100510.0,100500.0,6e-07]
[1733666357764,1.07093462,100510.0,100500.0,6e-07]
[1733666358319,1.07095838,100510.0,100500.0,6e-07]
[1733666358542,0.4959091,100510.0,100500.0,6e-07]
[1733666358742,0.41193981,100510.0,100500.0,6e-07]
[1733666360617,0.3226296,100510.0,100500.0,6e-07]
[1733666361983,0.1924296,100510.0,100500.0,6e-07]
[1733666362193,0.1819521,100510.0,100500.0,0.10003011]
[1733666362353,0.1819521,100510.0,100500.0,0.18153011]
[1733666362859,0.1819521,100510.0,100500.0,0.22663011]
[1733666365115,0.1969521,100510.0,100500.0,0.22663011]
[1733666365320,0.1819521,100510.0,100500.0,0.22663011]
[1733666365740,0.1969521,100510.0,100500.0,0.22663011]
[1733666365979,0.0178661,100510.0,100500.0,0.22663011]
[1733666366115,0.0178661,100510.0,100500.0,0.40573411]
[1733666366315,0.0178661,100510.0,100500.0,0.22663011]
[1733666366561,0.1969521,100510.0,100500.0,0.22663011]
[1733666366974,0.1819521,100510.0,100500.0,0.22663011]
[1733666368345,0.1969521,100510.0,100500.0,0.22663011]